bitfinex-derivatives/quotes_SOLF0:USTF0_20250101
["timestamp","ask_amount","ask_price","bid_price","bid_amount"]
[1735753009704,2.6315,190.39,190.35,7.69983415]
[1735753010699,2.6317,190.38,190.35,7.69983415]
[1735753012004,1.4942,190.4,190.2,54.72]
[1735753012005,1.4942,190.4,190.25,2.34228638]
[1735753012210,7.69983415,190.39,190.33,7.69983415]
[1735753012411,2.632,190.36,190.33,7.69983415]
[1735753015507,2.6321,190.35,190.31,3.0]
[1735753015712,2.6321,190.35,190.32,7.69983415]
[1735753017306,2.6323,190.34,190.21,2.35200714]
[1735753017508,7.69983415,190.35,190.29,7.69983415]
[1735753017715,7.69983415,190.33,190.27,7.69983415]
[1735753017915,2.6329,190.3,190.27,7.69983415]
[1735753020920,2.633,190.28,190.25,7.69983415]
[1735753021120,7.69983415,190.31,190.24,7.69983415]
[1735753021515,2.633,190.29,190.24,7.69983415]
[1735753021719,7.69983415,190.31,190.24,7.69983415]
[1735753022320,58.18845856,190.3,190.24,7.69983415]
[1735753022520,2.6332,190.28,190.24,7.69983415]
[1735753024116,2.6333,190.27,190.24,7.69983415]
[1735753024326,2.6333,190.27,190.17,24.76557418]
[1735753024327,7.69983415,190.25,190.06,1.94485461]
[1735753024524,7.69983415,190.25,190.18,7.69983415]
[1735753024724,7.69983415,190.23,190.12,3.0]
[1735753024921,3.0,190.22,190.16,7.69983415]
[1735753025225,2.6343,190.19,190.16,7.69983415]
[1735753025426,3.0,190.22,190.15,7.69983415]
[1735753026120,7.69983415,190.21,190.09,27.25947573]
[1735753026318,7.69983415,190.2,190.13,7.69983415]
[1735753026715,2.6346,190.17,190.13,7.69983415]
[1735753027325,2.6347,190.16,190.09,27.25947573]
[1735753027521,3.0,190.17,190.12,7.69983415]
[1735753027924,4.5319,190.17,190.12,7.69983415]
[1735753028818,2.635,190.15,190.12,7.69983415]
[1735753031019,4.5319,190.17,190.12,7.69983415]
[1735753031221,4.5319,190.17,190.06,1.94485461]
[1735753031222,4.5319,190.17,190.1,7.69983415]
[1735753031521,9.32683415,190.16,190.1,7.69983415]
[1735753032219,2.635,190.15,190.1,7.69983415]
[1735753032418,9.32683415,190.16,190.1,7.69983415]
[1735753032915,2.6351,190.13,190.1,7.69983415]
[1735753039729,9.32683415,190.16,190.1,7.69983415]
[1735753040031,7.69983415,190.14,190.08,7.69983415]
[1735753040233,1.627,190.16,189.91,2.32607048]
[1735753040234,7.69983415,190.12,189.91,2.32607048]
[1735753040431,3.0,190.11,190.04,7.69983415]
[1735753040630,3.0,190.11,190.06,7.69983415]
[1735753040825,2.6356,190.1,190.06,7.69983415]
[1735753041026,3.0,190.11,190.06,7.69983415]
[1735753041736,2.6356,190.1,190.06,7.69983415]
[1735753045229,7.69983415,190.14,190.06,7.69983415]
[1735753045433,3.0,190.14,190.08,7.69983415]
[1735753046533,2.6352,190.13,190.08,7.69983415]
[1735753047439,2.6352,190.13,190.1,7.69983415]
[1735753048324,3.0,190.14,190.1,7.69983415]
[1735753048525,4.2618,190.16,190.12,7.69983415]
[1735753048733,1.627,190.16,190.12,7.69983415]
[1735753049636,2.6347,190.16,190.12,7.69983415]
[1735753057034,7.69983415,190.17,190.1,7.69983415]
[1735753057441,2.6354,190.11,190.06,3.0]
[1735753057634,2.6354,190.11,190.09,7.69983415]
[1735753058641,7.69983415,190.17,190.09,7.69983415]
[1735753058836,7.69983415,190.17,190.11,7.69983415]
[1735753059035,7.69983415,190.15,189.99,2.33295152]
[1735753059343,2.6355,190.11,190.07,7.69983415]
[1735753059537,2.6355,190.11,190.09,7.69983415]
[1735753059741,7.69983415,190.15,190.09,7.69983415]
[1735753059946,10.69983415,190.18,190.11,7.69983415]
[1735753061643,2.635,190.14,190.11,7.69983415]
[1735753062340,2.6351,190.13,190.11,7.69983415]
[1735753067949,2.635,190.14,190.11,7.69983415]
[1735753075653,2.635,190.14,190.06,3.0]
[1735753075848,17.08997979,190.16,190.1,7.69983415]
[1735753076354,75.27843835,190.16,190.1,7.69983415]
[1735753076746,9.39014564,190.15,190.1,7.69983415]
[1735753077354,79.94975567,190.15,190.1,7.69983415]
[1735753077654,70.55961003,190.15,190.1,7.69983415]
[1735753078353,58.18845856,190.15,190.1,7.69983415]
[1735753078556,2.6353,190.12,190.1,7.69983415]
[1735753079650,2.6353,190.12,190.08,7.69983415]
[1735753080363,58.18845856,190.15,190.08,7.69983415]
[1735753080549,60.82345856,190.15,190.1,7.69983415]
[1735753080953,2.635,190.15,190.1,7.69983415]
[1735753082959,7.69983415,190.15,190.03,3.0]
[1735753083151,14.35186915,190.15,190.06,7.69983415]
[1735753083357,2.6356,190.1,190.06,7.69983415]
[1735753083853,7.69983415,190.13,190.06,7.69983415]
[1735753084259,2.6357,190.1,190.06,7.69983415]
[1735753084562,7.69983415,190.13,190.06,7.69983415]
[1735753084563,3.0,190.11,190.06,7.69983415]
[1735753084954,2.6358,190.09,190.06,7.69983415]
[1735753086455,3.0,190.11,189.97,27.27598344]
[1735753086456,2.6358,190.08,189.99,3.0]
[1735753086653,2.6358,190.08,190.04,7.69983415]
[1735753088456,2.6357,190.09,190.04,7.69983415]
[1735753088649,12.33423415,190.11,190.04,7.69983415]
[1735753089554,2.6357,190.09,190.04,7.69983415]
[1735753090156,4.6344,190.11,190.06,7.69983415]
[1735753091460,2.6357,190.09,190.06,7.69983415]
[1735753092961,1.6344,190.11,190.06,7.69983415]
[1735753093161,4.2699,190.11,190.06,7.69983415]
[1735753093362,2.6355,190.11,190.06,7.69983415]
[1735753093560,3.1644,190.12,190.08,7.69983415]
[1735753095460,70.56594213,190.14,190.1,7.69983415]
[1735753095768,70.56594213,190.14,190.12,7.69983415]
[1735753096063,58.18845856,190.14,190.12,7.69983415]
[1735753096585,62.30775856,190.16,190.12,7.69983415]
[1735753097363,2.6349,190.15,190.12,7.69983415]
[1735753099558,1.4845,190.16,190.12,7.69983415]
[1735753099758,2.6347,190.16,190.12,7.69983415]
[1735753101770,60.82305856,190.17,190.14,7.69983415]
[1735753111075,2.6346,190.17,190.14,7.69983415]
[1735753111278,12.05856703,190.17,190.14,7.69983415]
[1735753111577,17.12380118,190.17,189.97,27.27598344]
[1735753111880,7.69983415,190.13,190.07,7.69983415]
[1735753112079,2.6356,190.1,190.07,7.69983415]
[1735753115278,6.0898,190.12,190.07,7.69983415]
[1735753115478,5.7251,190.12,190.07,7.69983415]
[1735753115678,5.7251,190.12,190.09,7.69983415]
[1735753118182,2.6355,190.1,190.07,7.69983415]
[1735753122783,7.69983415,190.11,190.02,3.0]
[1735753122985,2.6359,190.08,190.04,7.69983415]
[1735753123280,17.12994184,190.11,190.04,7.69983415]
[1735753123484,2.6357,190.1,190.04,7.69983415]
[1735753123685,7.69983415,190.11,190.04,7.69983415]
[1735753124980,2.6357,190.09,190.04,7.69983415]
[1735753125583,2.6357,190.09,190.06,7.69983415]
[1735753134389,4.6954,190.12,190.06,7.69983415]
[1735753134687,87.28268784,190.15,190.1,7.69983415]
[1735753134688,58.18845856,190.14,190.1,7.69983415]
[1735753135485,2.6352,190.13,190.1,7.69983415]
[1735753135985,58.18845856,190.16,190.12,7.69983415]
[1735753136577,76.33766649,190.17,190.12,7.69983415]
[1735753137583,5.7542,190.17,190.12,7.69983415]
[1735753138288,5.7542,190.17,190.14,7.69983415]
[1735753139085,2.6344,190.18,190.14,7.69983415]
[1735753139286,3.0,190.2,190.16,7.69983415]
[1735753140284,5.6342,190.2,190.16,7.69983415]
[1735753141592,2.6342,190.2,190.16,7.69983415]
[1735753154203,5.634,190.21,190.16,7.69983415]
[1735753156907,2.6343,190.19,190.16,7.69983415]
[1735753157102,3.0,190.21,190.16,7.69983415]
[1735753158006,2.6342,190.2,190.16,7.69983415]
[1735753158202,3.0,190.21,190.16,7.69983415]
[1735753160509,2.6343,190.19,190.16,7.69983415]
[1735753161105,2.6342,190.2,190.16,7.69983415]
[1735753165607,2.6343,190.19,190.16,7.69983415]
[1735753166209,5.7698,190.22,190.18,7.69983415]
[1735753166910,3.1358,190.22,190.16,7.69983415]
[1735753167413,2.6344,190.19,190.16,7.69983415]
[1735753168808,2.6344,190.19,190.12,3.0]
[1735753169008,2.6344,190.19,190.15,7.69983415]
[1735753175417,3.0,190.18,190.09,2.31515985]
[1735753175616,3.0,190.18,190.12,7.69983415]
[1735753176117,61.18845856,190.18,190.12,7.69983415]
[1735753176317,2.6348,190.16,190.12,7.69983415]
[1735753177618,2.6349,190.15,190.12,7.69983415]
[1735753177818,58.18845856,190.17,190.09,2.31515985]
[1735753177819,65.88829271,190.17,190.09,2.31515985]
[1735753178114,7.69983415,190.13,190.07,7.69983415]
[1735753178316,2.6355,190.11,190.03,3.0]
[1735753178516,2.6355,190.11,190.07,7.69983415]
[1735753178720,7.69983415,190.11,190.03,3.0]
[1735753178916,2.6358,190.09,190.05,7.69983415]
[1735753179216,10.69983415,190.13,190.05,7.69983415]
[1735753179621,68.88829271,190.13,190.05,7.69983415]
[1735753180114,2.6356,190.1,190.07,7.69983415]
[1735753180323,61.18845856,190.13,190.09,7.69983415]
[1735753180716,3.0,190.13,190.09,7.69983415]
[1735753180920,58.18845856,190.14,190.11,7.69983415]
[1735753181121,58.18845856,190.14,190.13,7.69983415]
[1735753181821,3.0,190.19,190.13,7.69983415]
[1735753182423,3.0,190.19,190.15,7.69983415]
[1735753183513,60.82275856,190.2,190.15,7.69983415]
[1735753183821,2.6343,190.19,190.15,7.69983415]
[1735753186319,2.6345,190.18,190.15,7.69983415]
[1735753188127,17.11458209,190.2,190.13,7.69983415]
[1735753188625,2.635,190.14,190.11,7.69983415]
[1735753190320,2.635,190.14,190.06,3.0]
[1735753190517,2.635,190.14,190.1,7.69983415]
[1735753191327,2.6351,190.13,190.1,7.69983415]
[1735753192323,2.635,190.14,190.1,7.69983415]
[1735753199649,2.6353,190.12,190.1,7.69983415]
[1735753199841,7.69983415,190.14,190.08,7.69983415]
[1735753200143,2.6355,190.11,190.08,7.69983415]
[1735753201239,2.6353,190.13,190.08,7.69983415]
[1735753201444,9.39444539,190.15,190.08,7.69983415]
[1735753201747,9.39444539,190.15,190.1,7.69983415]
[1735753201946,67.58290395,190.15,190.1,7.69983415]
[1735753202145,58.18845856,190.15,190.1,7.69983415]
[1735753202647,2.635,190.14,190.1,7.69983415]
[1735753206848,5.6349,190.15,190.1,7.69983415]
[1735753207843,3.0,190.15,190.1,7.69983415]
[1735753208049,2.635,190.14,190.1,7.69983415]
[1735753208641,58.18845856,190.16,190.12,7.69983415]
[1735753208846,58.18845856,190.16,190.14,7.69983415]
[1735753209742,5.8078,190.18,190.14,7.69983415]
[1735753210145,58.18845856,190.19,190.14,7.69983415]
[1735753210345,60.82275856,190.19,190.14,7.69983415]
[1735753210850,58.18845856,190.19,190.14,7.69983415]
[1735753211050,58.18845856,190.2,190.14,7.69983415]
[1735753211850,7.69983415,190.18,190.12,7.69983415]
[1735753212848,7.69983415,190.16,190.1,7.69983415]
[1735753213051,10.69983415,190.16,190.1,7.69983415]
[1735753213748,2.6351,190.14,190.1,7.69983415]
[1735753215544,2.6351,190.14,189.98,2.37797965]
[1735753215545,7.69983415,190.14,190.08,7.69983415]
[1735753215744,7.69983415,190.14,190.06,7.69983415]
[1735753217452,2.6355,190.11,190.06,7.69983415]
[1735753221760,58.18845856,190.14,190.08,7.69983415]
[1735753222059,58.18845856,190.14,190.1,7.69983415]
[1735753223559,2.635,190.14,190.1,7.69983415]
[1735753224354,2.6351,190.13,190.08,7.69983415]
[1735753225659,2.6353,190.12,190.08,7.69983415]
[1735753226159,2.6354,190.11,190.08,7.69983415]
[1735753227157,2.6354,190.11,190.06,7.69983415]
[1735753227755,78.26353227,190.14,190.06,7.69983415]
[1735753228063,7.69983415,190.12,190.05,7.69983415]
[1735753229261,78.26353227,190.12,190.05,7.69983415]
[1735753229463,2.6356,190.1,190.05,7.69983415]
[1735753233461,2.6356,190.1,190.07,7.69983415]
[1735753235362,2.6356,190.1,190.02,3.0]
[1735753235564,2.6356,190.1,190.05,7.69983415]
[1735753239565,2.6355,190.11,190.05,7.69983415]
[1735753240368,68.88829271,190.13,190.05,7.69983415]
[1735753240561,2.6356,190.1,190.05,7.69983415]
[1735753242060,7.69983415,190.11,190.03,7.69983415]
[1735753242258,7.69983415,190.09,190.03,7.69983415]
[1735753242665,7.69983415,190.09,190.01,7.69983415]
[1735753242858,3.1413,190.1,190.01,7.69983415]
[1735753242859,7.69983415,190.07,190.01,7.69983415]
[1735753243865,2.6362,190.06,190.01,7.69983415]
[1735753244061,7.69983415,190.05,189.98,2.37797965]
[1735753244262,7.69983415,190.05,189.99,7.69983415]
[1735753245165,2.6364,190.05,189.99,7.69983415]
[1735753248569,3.0,190.07,190.01,7.69983415]
[1735753248772,60.82425856,190.09,190.03,7.69983415]
[1735753249271,2.6358,190.09,190.03,7.69983415]
[1735753249468,61.32975856,190.1,190.05,7.69983415]
[1735753250172,3.1413,190.1,190.05,7.69983415]
[1735753251973,5.7769,190.1,190.05,7.69983415]
[1735753252866,2.6358,190.09,190.0,3.0]
[1735753253065,7.69983415,190.09,190.02,7.69983415]
[1735753254573,7.69983415,190.07,190.0,7.69983415]
[1735753254868,3.0,190.06,190.0,7.69983415]
[1735753255271,2.6365,190.04,190.0,7.69983415]
[1735753255468,3.0,190.06,190.0,7.69983415]
[1735753255670,7.69983415,190.05,189.98,2.37797965]
[1735753256271,2.6367,190.02,189.98,2.37797965]
[1735753256666,7.69983415,190.05,189.98,2.37797965]
[1735753258582,2.6365,190.03,189.98,2.37797965]
[1735753259677,10.33613415,190.05,189.99,7.69983415]
[1735753260175,2.6363,190.05,189.99,7.69983415]
[1735753260981,2.6364,190.04,189.99,7.69983415]
[1735753261181,7.69983415,190.05,189.98,2.37797965]
[1735753261575,2.6367,190.02,189.98,2.37797965]
[1735753261879,7.69983415,190.03,189.98,2.37797965]
[1735753263584,2.6369,190.01,189.98,2.37797965]
[1735753265283,2.6369,190.01,189.97,7.69983415]
[1735753265783,2.637,190.0,189.95,39.18930051]
[1735753266582,2.637,190.0,189.95,7.69983415]
[1735753268478,10.69983415,190.01,189.95,7.69983415]
[1735753268783,2.6372,189.98,189.93,7.69983415]
[1735753270079,3.0,190.01,189.95,7.69983415]
[1735753270785,10.69983415,190.01,189.95,7.69983415]
[1735753271684,10.69983415,190.01,189.93,7.69983415]
[1735753272585,2.6372,189.98,189.93,7.69983415]
[1735753276586,10.69983415,190.01,189.93,7.69983415]
[1735753277288,10.69983415,190.01,189.95,7.69983415]
[1735753277781,7.69983415,190.01,189.95,7.69983415]
[1735753277986,2.6369,190.0,189.95,7.69983415]
[1735753278385,7.69983415,190.01,189.95,7.69983415]
[1735753278593,10.33673415,190.01,189.95,7.69983415]
[1735753278988,7.69983415,190.01,189.95,7.69983415]
[1735753279188,10.33673415,190.01,189.95,7.69983415]
[1735753279883,7.69983415,190.01,189.95,7.69983415]
[1735753280085,2.6369,190.0,189.95,7.69983415]
[1735753280791,7.69983415,190.01,189.93,7.69983415]
[1735753282488,2.6371,189.99,189.93,7.69983415]
[1735753286293,2.6372,189.98,189.93,7.69983415]
[1735753286996,10.84983415,190.02,189.95,7.69983415]
[1735753288297,2.6368,190.01,189.95,7.69983415]
[1735753288798,10.84983415,190.02,189.95,7.69983415]
[1735753289599,13.48663415,190.02,189.95,7.69983415]
[1735753292598,3.15,190.02,189.97,7.69983415]
[1735753292797,58.18845856,190.04,189.99,7.69983415]
[1735753292997,58.18845856,190.04,190.01,7.69983415]
[1735753294102,58.18845856,190.05,190.01,7.69983415]
[1735753295498,60.82475856,190.05,190.01,7.69983415]
[1735753296401,2.6366,190.03,189.97,7.69983415]
[1735753299305,65.88829271,190.05,189.97,7.69983415]
[1735753299503,2.6364,190.04,189.99,7.69983415]
[1735753299704,58.18845856,190.05,189.99,7.69983415]
[1735753302906,2.6364,190.04,189.99,7.69983415]
[1735753303913,65.88829271,190.05,189.99,7.69983415]
[1735753304103,58.18845856,190.05,189.99,7.69983415]
[1735753304415,70.57478491,190.06,189.99,7.69983415]
[1735753304809,9.41732695,190.05,190.01,7.69983415]
[1735753305314,67.60578551,190.05,190.01,7.69983415]
[1735753305808,60.82455856,190.06,190.01,7.69983415]
[1735753306712,58.18845856,190.06,190.05,7.69983415]
[1735753307206,58.18845856,190.07,190.05,7.69983415]
[1735753307613,87.28268784,190.09,190.05,7.69983415]
[1735753307814,87.28268784,190.09,190.07,7.69983415]
[1735753308113,143.10552726,190.1,190.07,7.69983415]
[1735753308714,3.0203,190.11,190.07,7.69983415]
[1735753311913,10.33503415,190.13,190.07,7.69983415]
[1735753312123,61.52608308,190.15,190.07,7.69983415]
[1735753312323,69.22591723,190.15,190.07,7.69983415]
[1735753312724,10.69983415,190.15,190.07,7.69983415]
[1735753313822,2.6354,190.12,190.07,7.69983415]
[1735753315021,2.6356,190.1,190.05,7.69983415]
[1735753315822,2.6358,190.09,190.05,7.69983415]
[1735753316517,2.6355,190.11,190.07,7.69983415]
[1735753319921,3.0,190.13,190.07,7.69983415]
[1735753320127,5.6352,190.13,190.07,7.69983415]
[1735753320531,5.6352,190.13,190.09,7.69983415]
[1735753320726,3.0,190.13,190.03,3.0]
[1735753320921,3.0,190.13,190.06,7.69983415]
[1735753321234,3.0,190.13,190.08,7.69983415]
[1735753322531,5.6352,190.13,190.08,7.69983415]
[1735753325533,3.0,190.13,190.08,7.69983415]
[1735753329231,10.33483415,190.14,190.08,7.69983415]
[1735753329834,2.6349,190.15,190.08,7.69983415]
[1735753330036,1.6372,190.16,190.1,7.69983415]
[1735753330241,1.6372,190.16,190.12,7.69983415]
[1735753330536,61.59498308,190.17,190.12,7.69983415]
[1735753331437,3.0689,190.17,190.12,7.69983415]
[1735753335537,3.0689,190.17,190.14,7.69983415]
[1735753340236,3.0689,190.17,190.12,7.69983415]
[1735753340436,3.0689,190.17,190.06,3.0]
[1735753340633,7.69983415,190.16,190.1,7.69983415]
[1735753341438,7.69983415,190.16,190.06,3.0]
[1735753341739,2.6351,190.14,190.09,7.69983415]
[1735753342245,2.6354,190.12,190.09,7.69983415]
[1735753342743,2.6354,190.12,190.07,7.69983415]
[1735753345048,10.69983415,190.14,190.09,7.69983415]
[1735753345243,2.6351,190.13,190.09,7.69983415]
[1735753348654,5.635,190.14,190.09,7.69983415]
[1735753354157,2.6356,190.1,190.07,7.69983415]
[1735753354367,10.69983415,190.14,190.07,7.69983415]
[1735753354966,2.6355,190.11,190.07,7.69983415]
[1735753356771,2.6354,190.12,190.07,7.69983415]
[1735753359671,2.6354,190.11,190.02,3.0]
[1735753359873,2.6354,190.11,190.06,7.69983415]
[1735753360368,7.69983415,190.12,189.93,34.6051106]
[1735753360672,9.39645927,190.13,190.07,7.69983415]
[1735753360873,67.92254235,190.13,190.07,7.69983415]
[1735753361171,58.52608308,190.13,190.09,7.69983415]
[1735753362168,3.0,190.14,190.09,7.69983415]
[1735753362371,58.52608308,190.15,190.09,7.69983415]
[1735753363076,3.0,190.16,190.09,7.69983415]
[1735753363471,2.635,190.14,190.09,7.69983415]
[1735753378974,2.6353,190.12,190.09,7.69983415]
[1735753379182,2.6353,190.12,190.07,7.69983415]
[1735753380781,70.88671899,190.15,190.09,7.69983415]
[1735753381383,81.58655314,190.16,190.09,7.69983415]
[1735753381579,73.88671899,190.16,190.09,7.69983415]
[1735753381985,9.39994584,190.15,190.09,7.69983415]
[1735753382188,73.88671899,190.16,190.09,7.69983415]
[1735753382386,61.52608308,190.16,190.09,7.69983415]
[1735753382580,2.635,190.14,190.09,7.69983415]
[1735753391087,2.635,190.14,190.05,3.0]
[1735753391291,2.635,190.14,190.06,2.3423617]
[1735753391591,2.635,190.14,190.09,7.69983415]
[1735753392882,2.635,190.14,189.97,7.34176784]
[1735753393087,2.6353,190.12,190.07,7.69983415]
[1735753393792,7.69983415,190.15,190.07,7.69983415]
[1735753393993,2.6355,190.11,190.03,3.0]
[1735753394294,2.6355,190.11,190.06,7.69983415]
[1735753401790,2.6355,190.11,190.03,3.0]
[1735753401994,2.6355,190.11,190.07,7.69983415]
[1735753406298,5.6355,190.11,190.07,7.69983415]
[1735753407795,3.0,190.11,190.03,3.0]
[1735753407991,7.69983415,190.09,189.99,3.0]
[1735753408197,3.2294,190.1,190.0,2.3432345]
[1735753408395,2.636,190.07,190.02,7.69983415]
[1735753408895,10.92923415,190.1,190.02,7.69983415]
[1735753409098,2.6358,190.08,190.02,7.69983415]
[1735753411903,13.56483415,190.1,190.04,7.69983415]
[1735753412103,3.2294,190.1,190.06,7.69983415]
[1735753413404,3.0,190.12,190.06,7.69983415]
[1735753413607,12.38713866,190.12,190.06,7.69983415]
[1735753414899,3.1402,190.11,190.06,7.69983415]
[1735753415096,10.84003415,190.11,190.04,7.69983415]
[1735753416002,2.6357,190.09,190.04,7.69983415]
[1735753422313,2.636,190.07,190.04,7.69983415]
[1735753422511,2.636,190.07,190.02,7.69983415]
[1735753422810,10.69983415,190.07,189.88,62.12176784]
[1735753423005,2.6365,190.04,190.0,7.69983415]
[1735753423603,10.69983415,190.07,190.0,7.69983415]
[1735753423809,2.6362,190.05,190.0,7.69983415]
[1735753425210,3.0,190.07,190.0,7.69983415]
[1735753425408,7.69983415,190.08,190.02,7.69983415]
[1735753425714,3.0,190.08,190.02,7.69983415]
[1735753426116,58.52608308,190.09,190.04,7.69983415]
[1735753426313,73.84373134,190.1,189.96,3.0]
[1735753426516,76.47933134,190.1,190.05,7.69983415]
[1735753427221,5.6356,190.1,190.05,7.69983415]
[1735753434525,2.6357,190.09,190.03,7.69983415]
[1735753440132,2.6359,190.08,190.03,7.69983415]
[1735753440334,12.33623828,190.09,190.01,7.69983415]
[1735753441029,2.636,190.07,190.01,7.69983415]
[1735753441532,2.636,190.07,190.03,7.69983415]
[1735753443032,70.86232136,190.09,190.03,7.69983415]
[1735753443636,58.52608308,190.09,190.03,7.69983415]
[1735753444227,58.52608308,190.09,190.07,7.69983415]
[1735753444734,181.51700908,190.13,190.07,7.69983415]
[1735753444735,2.6351,190.13,190.07,7.69983415]
[1735753445735,7.69983415,190.14,190.07,7.69983415]
[1735753445935,13.33483415,190.14,190.07,7.69983415]
[1735753446136,10.69983415,190.14,190.07,7.69983415]
[1735753446837,2.6353,190.12,190.07,7.69983415]
[1735753450540,3.0,190.14,190.07,7.69983415]
[1735753450837,2.6351,190.13,190.09,7.69983415]
[1735753452037,5.635,190.15,190.11,7.69983415]
[1735753454342,5.635,190.15,190.06,3.0]
[1735753454542,5.635,190.15,190.11,7.69983415]
[1735753455041,2.6353,190.12,190.09,7.69983415]
[1735753457443,3.0,190.15,190.09,7.69983415]
[1735753457444,2.6352,190.13,190.09,7.69983415]
[1735753462149,2.635,190.14,190.09,7.69983415]
[1735753463148,3.0,190.15,190.09,7.69983415]
[1735753463349,5.6349,190.15,190.09,7.69983415]
[1735753463946,2.635,190.14,190.09,7.69983415]
[1735753464749,2.6352,190.13,190.09,7.69983415]
[1735753464944,3.0,190.15,190.09,7.69983415]
[1735753465746,2.6352,190.13,190.09,7.69983415]
[1735753467651,2.6353,190.12,190.09,7.69983415]
[1735753469452,2.6353,190.12,190.03,3.0]
[1735753469753,2.6355,190.11,190.08,7.69983415]
[1735753480259,2.6352,190.13,190.08,7.69983415]
[1735753480466,2.6352,190.13,190.1,7.69983415]
[1735753480968,58.52608308,190.14,190.1,7.69983415]
[1735753481863,58.52608308,190.15,190.1,7.69983415]
[1735753482558,61.16098308,190.15,190.1,7.69983415]
[1735753488774,58.52608308,190.15,190.12,7.69983415]
[1735753488973,58.52608308,190.15,190.14,7.69983415]
[1735753490275,58.52608308,190.18,190.14,7.69983415]
[1735753491176,90.42342462,190.19,190.14,7.69983415]
[1735753491177,61.16038308,190.19,190.14,7.69983415]
[1735753492076,2.6343,190.19,190.14,7.69983415]
[1735753492777,12.03746665,190.19,190.14,7.69983415]
[1735753495271,2.6343,190.19,190.14,7.69983415]
[1735753496273,2.6343,190.19,190.16,7.69983415]
[1735753499282,2.6343,190.19,190.14,7.69983415]
[1735753502883,2.6343,190.19,190.08,2.98]
[1735753503283,2.6343,190.19,190.14,7.69983415]
[1735753510193,7.69983415,190.19,189.99,7.34176784]
[1735753510389,7.69983415,190.13,190.05,7.69983415]
[1735753510586,2.98,190.12,190.05,7.69983415]
[1735753510793,2.6354,190.11,190.05,7.69983415]
[1735753510991,2.6354,190.11,190.07,7.69983415]
[1735753511293,2.98,190.12,190.07,7.69983415]
[1735753511993,5.6153,190.12,190.07,7.69983415]
[1735753513992,2.98,190.12,190.07,7.69983415]
[1735753514192,2.98,190.12,190.05,7.69983415]
[1735753515196,2.6356,190.1,190.05,7.69983415]
[1735753516097,2.6356,190.1,189.94,34.61409591]
[1735753516098,7.69983415,190.09,189.94,34.61409591]
[1735753516296,7.69983415,190.07,190.0,7.69983415]
[1735753516494,7.69983415,190.05,189.98,7.69983415]
[1735753516694,2.6365,190.03,189.98,7.69983415]
[1735753516891,7.69983415,190.05,189.98,7.69983415]
[1735753517793,2.6365,190.03,189.98,7.69983415]
[1735753518195,7.69983415,190.05,189.98,7.69983415]
[1735753518391,2.98,190.06,189.95,7.69983415]
[1735753518599,7.69983415,190.02,189.95,7.69983415]
[1735753518901,2.98,190.01,189.95,7.69983415]
[1735753519503,2.637,190.0,189.91,2.98]
[1735753519800,2.637,190.0,189.95,7.69983415]
[1735753520101,2.6372,189.98,189.94,7.69983415]
[1735753520300,2.6372,189.98,189.93,7.69983415]
[1735753520794,3.1392,190.0,189.9,2.95525182]
[1735753520999,7.69983415,189.96,189.9,2.95525182]
[1735753521203,5.6177,189.95,189.9,2.95525182]
[1735753521397,2.98,189.94,189.9,2.95525182]
[1735753521699,2.98,189.94,189.91,7.69983415]
[1735753523302,2.98,189.94,189.89,7.69983415]
[1735753523502,2.6379,189.93,189.89,7.69983415]
[1735753524705,2.98,189.94,189.89,7.69983415]
[1735753526101,2.6379,189.93,189.89,7.69983415]
[1735753526302,10.67983415,189.94,189.88,7.69983415]
[1735753526793,2.6381,189.92,189.88,7.69983415]
[1735753529803,1.5816,189.93,189.88,7.69983415]
[1735753530000,2.6382,189.91,189.88,7.69983415]
[1735753530203,9.31163415,189.92,189.86,7.69983415]
[1735753530401,10.89933415,189.92,189.86,7.69983415]
[1735753530903,2.6386,189.88,189.66,7.34176784]
[1735753531203,10.67983415,189.88,189.82,7.69983415]
[1735753531401,10.67983415,189.88,189.8,7.69983415]
[1735753531596,2.6393,189.83,189.8,7.69983415]
[1735753531794,5.6193,189.83,189.8,7.69983415]
[1735753532397,2.98,189.83,189.8,7.69983415]
[1735753532608,2.98,189.83,189.73,34.65004824]
[1735753532912,2.98,189.83,189.77,7.69983415]
[1735753533302,7.69983415,189.8,189.74,7.69983415]
[1735753533702,7.69983415,189.8,189.63,6.20631803]
[1735753534007,7.69983415,189.76,189.69,7.69983415]
[1735753534213,3.0,189.75,189.69,7.69983415]
[1735753535308,2.6407,189.73,189.69,7.69983415]